Cogmind - Beta 15 @@@ ROGUE MODE // 2025.08.15 @ 20:15:52 Player: eVander Result: Destroyed by G-47 Trooper with Particle Gun Performance ------------- Evolutions (2) 1000 Regions Visited (4) 800 Robots Destroyed (42) 210 Value Destroyed (965) 965 Prototype IDs (0) 0 Alien Tech Used (0) 0 Bonus (0) 0 TOTAL SCORE: 2975 Bonus ------- None Cogmind --------- Core Integrity 0/550 Matter 271/300 Energy 100/100 System Corruption 0% Temperature Cool (9) Movement Core (700) Ox13 Location -8/Materials Parts ------- > --- POWER (1) -------- (None) > --- PROPULSION (4) --- (None) > --- UTILITY (3) ------ High-capacity Storage Unit Improved Targeting Computer > --- WEAPON (3) ------- (None) > --- INVENTORY (20) --- Tractor Beam Light Assault Rifle Improved Datajack Peak State ------------ > --- POWER ------------ Improved Ion Engine > --- PROPULSION ------- Light Treads Light Treads Light Treads > --- UTILITY ---------- High-capacity Storage Unit Improved Targeting Computer > --- WEAPON ----------- Grenade Launcher Grenade Launcher Grenade Launcher > --- INVENTORY -------- Ion Engine Improved Ion Engine Light Nuclear Core Light Treads Aluminum Leg EM Pulse Gun Grenade Launcher [Rating: 12] Favorites ----------- Power Improved Ion Engine Engine Improved Ion Engine Power Core Light Nuclear Core Propulsion Light Treads Treads Light Treads Leg Aluminum Leg Utility High-capacity Storage Unit Storage High-capacity Storage Unit Processor Improved Targeting Computer Weapon Grenade Launcher Energy Gun EM Pulse Gun Launcher Grenade Launcher Build | -11 -10 -9 -9 -8 ------- Run | Yrd Mat Mat Min Mat Slots Evolved 4 | . . 2 . 2 Power . | . . . . . Propulsion 2 | . . 1 . 1 Utility 1 | . . . . 1 Weapon 1 | . . 1 . . Parts Attached 21 | 5 9 3 2 2 Power 5 | 1 2 . 2 . Engine 4 | 1 2 . 1 . Core 1 | . . . 1 . Reactor . | . . . . . Propulsion 7 | 2 2 2 . 1 Treads 4 | 2 . 1 . 1 Leg 3 | . 2 1 . . Wheel . | . . . . . Hover . | . . . . . Flight . | . . . . . Utility 3 | 1 1 1 . . Device . | . . . . . Storage 2 | 1 1 . . . Processor 1 | . . 1 . . Hackware . | . . . . . Protection . | . . . . . Artifact . | . . . . . Weapon 6 | 1 4 . . 1 Energy Gun 1 | 1 . . . . Energy Cannon . | . . . . . Ballistic Gun . | . . . . . Ballistic Cannon . | . . . . . Launcher 5 | . 4 . . 1 Special Weapon . | . . . . . Impact Weapon . | . . . . . Slashing Weapon . | . . . . . Piercing Weapon . | . . . . . Special Melee Weapon . | . . . . . Unidentified Prototypes . | . . . . . Parts Lost 13 | . . . 6 7 Power 3 | . . . 1 2 Propulsion 5 | . . . 1 4 Utility . | . . . . . Weapon 5 | . . . 4 1 Highest Loss Streak 5 | . . . 4 5 To Critical Strikes . | . . . . . Average Backups 5 | 1 5 6 5 3 Power 1 | . 1 2 1 . Propulsion 1 | . 1 2 2 . Utility . | . . . . 1 Weapon 1 | . 2 2 1 . Tool/Special . | . . . . . Unused Backups 4 | 2 1 . . 1 Power . | . . . . . Propulsion 2 | 1 1 . . . Utility 1 | . . . . 1 Weapon 1 | 1 . . . . Tool/Special . | . . . . . Average Slot Usage (%) 79 | . 82 92 79 37 Engine 9 | . 14 11 6 2 Treads 15 | . 3 18 28 10 Leg 12 | . 24 14 . 2 Storage 12 | . 14 11 11 9 Processor 5 | . . 4 11 9 Energy Gun 2 | . 1 . 4 2 Launcher 20 | . 23 33 15 . Peak Build Rating 12 | 5 8 11 12 10 Average Rating 7 | 2 6 9 9 5 On Entrance 6 | . 5 7 11 8 Naked Turns . | . . . . . Heaviest Build 56 | 12 53 56 56 50 Greatest Support 60 | 40 40 60 60 60 Greatest Overweight (x) 15 | . 2 1 1 15 Average Overweight (x) . | . 1 . . 2 Largest Inventory Capacity 20 | 8 20 20 20 20 Average Capacity 18 | 6 16 20 20 20 Most Carried 9 | 5 9 9 7 5 Average Carried 5 | . 5 6 5 3 Final Capacity 20 | 8 20 20 20 20 Final Carried 8 | . 8 6 6 3 Class Distribution -------------------- 68% | Mutant 31% | Bomber Dominant Class ---------------- Mutant | -10/Materials Bomber | -9/Materials Mutant | -9/Mines Mutant | -8/Materials Resources | -11 -10 -9 -9 -8 ----------- Run | Yrd Mat Mat Min Mat Matter Collected 851 | 246 44 153 377 31 Remotely . | . . . . . Salvage Created 1128 | . 174 179 686 89 Parts 69 | . 14 16 36 3 Haulers Intercepted 1 | . . 1 . . Recyclers Shooed 2 | . . . 2 . Parts Field Recycled . | . . . . . Retrieved Matter . | . . . . . Parts Self-Destructed . | . . . . . Prevented . | . . . . . Kills | -11 -10 -9 -9 -8 ------- Run | Yrd Mat Mat Min Mat Combat Hostiles Destroyed 28 | . 8 11 6 3 Guns 1 | . . . 1 . AOE 27 | . 8 11 5 3 Classes Destroyed 10 | . 2 4 3 1 Worker 4 | . 1 1 2 . Builder 1 | . . . 1 . Tunneler 1 | . . . 1 . Hauler 1 | . . 1 . . Recycler 5 | . . . 5 . Watcher 2 | . . 2 . . Swarmer 9 | . . 8 . 1 Grunt 17 | . 8 2 6 1 Duelist 1 | . . . . 1 Sentry 1 | . . 1 . . Best Kill Streak 7 | . 7 6 7 3 Combat Bots Only 6 | . 6 5 2 3 Max Kills in Single Turn 4 | . 3 4 2 1 Gunslinging . | . . . . . Exploded 4 | . 2 4 2 1 Melee . | . . . . . Uniques/NPCs Destroyed . | . . . . . Combat | -11 -10 -9 -9 -8 -------- Run | Yrd Mat Mat Min Mat Hostile Shots Fired 151 | . 15 6 33 97 Missed 41 | . 2 3 9 27 Hits 110 | . 13 3 24 70 Melee 2 | . . . . 2 Projectile 108 | . 13 3 24 68 Critical Strikes 4 | . . . 1 3 Damage Taken 1921 | . 232 104 406 1179 Core 656 | . 43 10 53 550 Absorbed by Shields . | . . . . . Core Remaining (%) 88 | 100 82 . 84 . Volleys Fired 49 | . 10 8 26 5 Largest 3 | . 2 3 2 2 Hottest 90 | . 60 90 60 70 Shots Fired 70 | . 17 18 29 6 Gun 24 | . 3 . 20 1 Cannon . | . . . . . Launcher 46 | . 14 18 9 5 Special . | . . . . . Kinetic . | . . . . . Thermal . | . . . . . Explosive 46 | . 14 18 9 5 Electromagnetic 24 | . 3 . 20 1 Robot Hit Streak 9 | . 6 3 9 4 Robot Miss Streak 3 | . 3 2 2 2 Penetration Max . | . . . . . Secondary Targets . | . . . . . Shots Hit Robots 39 | . 8 5 22 4 Core Hits 66 | . 15 23 20 8 Critical Kills . | . . . . . Critical Parts Destroyed . | . . . . . Critical Strikes . | . . . . . Melee Attacks . | . . . . . Impact . | . . . . . Slashing . | . . . . . Piercing . | . . . . . Sneak Attacks . | . . . . . Combat Hostiles . | . . . . . Follow-up Attacks . | . . . . . Damage Inflicted 2403 | . 601 887 589 326 Guns 222 | . . . 222 . Cannons . | . . . . . Explosions 2178 | . 601 887 364 326 Melee . | . . . . . Ramming 3 | . . . 3 . Kinetic . | . . . . . Thermal 24 | . . . 24 . Explosive 2154 | . 601 887 340 326 Electromagnetic 222 | . . . 222 . Impact . | . . . . . Slashing . | . . . . . Piercing . | . . . . . Highest Corruption . | . . . . . Average Corruption . | . . . . . Corruption Purged . | . . . . . Corruption Blocked . | . . . . . Overload Shots . | . . . . . Overflow Damage 60 | . 8 8 29 15 Projectiles . | . . . . . Explosions 60 | . 8 8 29 15 Melee . | . . . . . Knockbacks . | . . . . . Impact . | . . . . . Kinetic . | . . . . . Secondary . | . . . . . Self-Inflicted Damage 271 | . 63 79 58 71 Shots 15 | . 5 3 3 4 Rammed 2 | . . . 2 . Targets Rammed 2 | . . . 2 . Kicked . | . . . . . Crushed . | . . . . . Highest Temperature 54 | . 54 24 8 14 Average Temperature 15 | . 25 13 4 7 Received Heat Transfer 906 | . 96 6 228 576 Siege Activations . | . . . . . Martial Activations . | . . . . . Shielding Activations . | . . . . . Robots Disrupted . | . . . . . Combat Hostiles . | . . . . . Robots Corrupted . | . . . . . Combat Hostiles . | . . . . . Parts Fried . | . . . . . Impact Corruptions . | . . . . . Robots Melted . | . . . . . Combat Hostiles . | . . . . . Parts Melted . | . . . . . Heat Transferred 50 | . . . 50 . Parts Sabotaged . | . . . . . Parts Stolen . | . . . . . Parts Stripped . | . . . . . Power Chain Reactions 1 | . . . 1 . Alert | -11 -10 -9 -9 -8 ------- Run | Yrd Mat Mat Min Mat Maximum Alert Level 1 | . 1 1 1 . Low Security (%) 86 | 100 96 28 97 100 Level 1 13 | . 3 71 2 . Level 2 . | . . . . . Level 3 . | . . . . . Level 4 . | . . . . . Level 5 . | . . . . . High Security . | . . . . . Max Security . | . . . . . Peak Influence 383 | . 201 383 200 109 Initial 141 | . . 74 141 32 Average 99 | . 33 226 136 44 Influence Increases 1108 | . 295 429 281 103 Destroy 0b10 Robot/C 560 | . 160 220 120 60 Destroy 0b10 Robot/NC 70 | . 5 20 45 . Destroy Leader 126 | . 40 46 30 10 Trap Triggered on 0b10 10 | . . . . 10 Disable Machine 90 | . 30 60 . . Destroy Structure 222 | . 60 83 56 23 Lose Combat Pursuer 30 | . . . 30 . Influence Decreases 1103 | . 118 243 560 182 Entered New Map 377 | . . 103 222 52 Time Decay 596 | . 118 140 278 60 Lost Part 130 | . . . 60 70 Squads Dispatched 5 | . 3 1 . 1 Investigation 1 | . 1 . . . Extermination . | . . . . . Reinforcement 4 | . 2 1 . 1 Assault . | . . . . . Garrison . | . . . . . Intercept . | . . . . . Searches Triggered . | . . . . . Construction Impeded . | . . . . . Haulers Reinforced . | . . . . . Active Scanning Responses . | . . . . . Cargo Convoy Interrupts . | . . . . . Stealth | -11 -10 -9 -9 -8 --------- Run | Yrd Mat Mat Min Mat Distress Signals 3 | . . 3 . . Communications Jammed . | . . . . . Distress Signals . | . . . . . Times Spotted 45 | . 11 19 7 8 Peak Tracking Total 6 | . 5 4 2 6 Tactical Retreats 1 | . . . 1 . Traps | -11 -10 -9 -9 -8 ------- Run | Yrd Mat Mat Min Mat Traps Triggered 2 | . 2 . . . Indirectly . | . . . . . Trap Hack Attempts . | . . . . . Triggered . | . . . . . Disarmed . | . . . . . Reprogrammed . | . . . . . Reused 1 | . . . . 1 Traps Extracted . | . . . . . Installed 1 | . . . . 1 Triggered 1 | . . . . 1 Most Traps Carried 1 | . . . 1 1 Machines | -11 -10 -9 -9 -8 ---------- Run | Yrd Mat Mat Min Mat Machines Disabled 6 | . 2 4 . . Max in Single Turn 2 | . 1 2 . . Machines Repaired . | . . . . . Machines Dismantled . | . . . . . Machines Sabotaged . | . . . . . Overloaded Fab Kills . | . . . . . Hacking | -11 -10 -9 -9 -8 --------- Run | Yrd Mat Mat Min Mat Machines Accessed . | . . . . . Terminals . | . . . . . Fabricators . | . . . . . Repair Stations . | . . . . . Recycling Units . | . . . . . Scanalyzers . | . . . . . Garrison Access . | . . . . . Total Hacks . | . . . . . Successful . | . . . . . Failed . | . . . . . Catastrophic . | . . . . . Database Lockouts . | . . . . . Manual . | . . . . . Terminals . | . . . . . Fabricators . | . . . . . Repair Stations . | . . . . . Recycling Units . | . . . . . Scanalyzers . | . . . . . Garrison Access . | . . . . . Terminal Hacks . | . . . . . Fabricator Hacks . | . . . . . Repair Station Hacks . | . . . . . Recycling Unit Hacks . | . . . . . Scanalyzer . | . . . . . Garrison Access Hacks . | . . . . . Unauthorized Hacks . | . . . . . Terminals . | . . . . . Fabricators . | . . . . . Repair Stations . | . . . . . Recycling Units . | . . . . . Scanalyzers . | . . . . . Garrison Access . | . . . . . Data Cores Recovered . | . . . . . Used . | . . . . . Hacking Detections . | . . . . . Full Trace Events . | . . . . . Feedback Events . | . . . . . Feedback Blocked . | . . . . . Robot Schematics Acquired . | . . . . . Robots Built . | . . . . . Authchips . | . . . . . Time . | . . . . . Total Robot Build Rating . | . . . . . Part Schematics Acquired . | . . . . . Parts Built . | . . . . . Authchips . | . . . . . Time . | . . . . . Total Part Build Rating . | . . . . . Parts Repaired . | . . . . . Time . | . . . . . Parts Recycled . | . . . . . Recycled Matter . | . . . . . Retrieved Matter . | . . . . . Retrieved Components . | . . . . . Parts Scanalyzed . | . . . . . Part Schematics Acquired . | . . . . . Parts Damaged . | . . . . . Bothacking | -11 -10 -9 -9 -8 ------------ Run | Yrd Mat Mat Min Mat Used RIF Installer . | . . . . . Robots Hacked . | . . . . . Non-combat . | . . . . . Combat . | . . . . . Robot Hacks Applied . | . . . . . Relay Couplers Released . | . . . . . Fabnet Peak Effective % . | . . . . . Robots Rewired . | . . . . . Allies Hacked . | . . . . . Hacks Repelled . | . . . . . Allies | -11 -10 -9 -9 -8 -------- Run | Yrd Mat Mat Min Mat Total Allies . | . . . . . Largest Group . | . . . . . Highest-Rated Group . | . . . . . Highest-Rated Ally . | . . . . . Total Orders . | . . . . . Ally Attacks . | . . . . . Total Damage . | . . . . . Kills . | . . . . . Allies Corrupted . | . . . . . Allies Melted . | . . . . . Intel | -11 -10 -9 -9 -8 ------- Run | Yrd Mat Mat Min Mat Active Infowar (turns) . | . . . . . Robot Analysis Total . | . . . . . Derelict Logs Recovered . | . . . . . Drone Launches . | . . . . . Drone Recoveries . | . . . . . Exploration | -11 -10 -9 -9 -8 ------------- Run | Yrd Mat Mat Min Mat Turns Passed 1759 | 86 653 288 608 124 Spaces Moved 807 | 65 267 149 288 38 Core 38 | 34 . . . 4 Treads 476 | 31 43 92 288 22 Legs 293 | . 224 57 . 12 Wheels . | . . . . . Hover . | . . . . . Flight . | . . . . . Fastest Speed 50 | 50 120 160 160 160 Average Speed 190 | 102 212 171 187 279 Slowest Speed 800 | 160 260 190 240 800 Overloaded Moves . | . . . . . Propulsion Burnouts . | . . . . . Robots Hopped . | . . . . . Potential Cave-ins 3 | . . 1 2 . Cave-ins Triggered . | . . . . . Exploration Rate (%) 21 | 3 42 18 39 5 Regions Visited 4 Branch Regions 1 Pre-discovered Areas 1 | . . . 1 . Known Exits Taken . | . . . . . Unknown Exits Taken 4 | 1 1 1 1 . Scrap Searched 1 | . . . 1 . Spaces Dug . | . . . . . Terrain Destroyed 272 | . 64 107 80 21 Melee . | . . . . . Projectile . | . . . . . AOE 272 | . 64 107 80 21 Terrain Rammed . | . . . . . Walls Destroyed . | . . . . . Machines Disabled . | . . . . . Actions | -11 -10 -9 -9 -8 --------- Run | Yrd Mat Mat Min Mat Total 963 | 86 335 167 324 51 Wait 39 | 8 31 . . . Move 803 | 64 266 148 287 38 Hop . | . . . . . Pick Up 31 | 7 15 3 4 2 Fast Attach . | . . . . . Attach 18 | 5 3 3 3 4 Detach . | . . . . . Swap 10 | . 6 3 1 . Drop 10 | 2 4 2 1 1 Fire 49 | . 10 8 26 5 Melee . | . . . . . Ram . | . . . . . Kick . | . . . . . Crush 2 | . . . 2 . Escape Stasis . | . . . . . Rewire . | . . . . . Trap 1 | . . . . 1 Miscellaneous . | . . . . . Route ------- -11/Scrapyard -10/Materials (discovered 2 exits: [*Mat] / [*Sub]) -9/Materials -9/Mines -8/Materials History --------- Turn | Location | Event 23 | -11/Scrapyard | Discovered new exit (range 14) 87 | -11/Scrapyard | Entered Materials 317 | -10/Materials | Build established: Mutant 543 | -10/Materials | Discovered new exit (range 3) 661 | -10/Materials | Discovered new exit (range 15) 740 | -10/Materials | Entered another Materials area 740 | -9/Materials | Evolved 2 slots: Propulsion x1, Weapon x1 994 | -9/Materials | Discovered new exit (range 13) 1028 | -9/Materials | Entered Mines 1054 | -9/Mines | Build established: Bomber 1061 | -9/Mines | Learned location of Storage (-8) 1194 | -9/Mines | Discovered new exit (range 9) 1219 | -9/Mines | YI-UF0 nonchalantly dropped a Grenade Launcher on the ground 1230 | -9/Mines | Found a hidden stash of uninstalled traps 1327 | -9/Mines | Lost 4 parts (1p3w) 1580 | -9/Mines | Build established: Mutant 1636 | -9/Mines | Entered Materials 1636 | -8/Materials | Evolved 2 slots: Propulsion x1, Utility x1 1697 | -8/Materials | Core integrity fell below 50% 1718 | -8/Materials | Lost 5 parts (1p3n1w) 1745 | -8/Materials | Core integrity fell below 20% 1760 | -8/Materials | Destroyed by G-47 Trooper with Particle Gun Last Messages --------------- 01669_ L-31 Rogue destroyed. 01669_ S-10 Pest destroyed. 01674_ G-47 Trooper destroyed. 01676_ Grenade Launcher destroyed. 01676_ Destroyed Grenade Launcher. 01678_ Lgt. Treads destroyed. 01680_ Acquired 15 matter. 01681_ Lgt. Treads destroyed. 01682_ The unstable cave ceiling collapses. 01684_ Acquired 16 matter. 01687_ Lgt. Treads destroyed. 01694_ Critical hit (Burn: +37). 01699_ G-47 Trooper destroyed. 01706_ Acquired Lgt. Assault Rifle. 01708_ The unstable cave ceiling collapses. 01731_ Electrolysis Chamber disabled. 01735_ Aluminum Leg destroyed. 01744_ Acquired Imp. Datajack. 01758_ Imp. Ion Engine destroyed. 01758_ U-05 Engineer lays Concrete. Map ----- +----------------------------------------------------+ | ?????????????????????????????????????????????????? | | ?????????????????????????????????????????????????? | | ????????????????????????????????????#####????????? | | ????????????????????????????????????# #????????? | | ?????????????????????????????# ?????# #????????? | | ?????????????????????????????# ????# #????????? | | ?????????????????????????????# #### ########## | | ?????????????????????????????# | | ?????????????????????????????# | | ?????????????????????????????# ######### | | ?????????????????????????????####### ##???????? | | ??????????????????????????######## #???????? | | ?????????????????????????## #???????? | | ?????????????????????????# [ " #???????? | | ?????????????????????????# ! " ##???????? | | ?????????????????????????# %u[= # #????????? | | ?????????????????????###### ### #????????? | | ?????????????????????# * # # ## #???????? | | ?????????????????????# """ #???????? | | ?????????????????????# """ T #???????? | | ?????????????????????# """ # #???????? | | ?????????????????????# g######## #???????? | | ?????????????????????# """g #??????#######???????? | | ?????????????????????# """ #????????????????????? | | ?????????????????????# "" #????????????????????? | | ?????????????????????# @ #????????????????????? | | ?????????????????????########????????????????????? | | ?????????????????????????????????????????????????? | | ?????????????????????????????????????????????????? | | ?????????????????????????????????????????????????? | | ?????????????????????????????????????????????????? | | ?????????????????????????????????????????????????? | | ?????????????????????????????????????????????????? | | ?????????????????????????????????????????????????? | | ?????????????????????????????????????????????????? | | ?????????????????????????????????????????????????? | | ?????????????????????????????????????????????????? | | ?????????????????????????????????????????????????? | | ?????????????????????????????????????????????????? | | ?????????????????????????????????????????????????? | | ?????????????????????????????????????????????????? | | ?????????????????????????????????????????????????? | | ?????????????????????????????????????????????????? | | ?????????????????????????????????????????????????? | | ?????????????????????????????????????????????????? | | ?????????????????????????????????????????????????? | | ?????????????????????????????????????????????????? | | ?????????????????????????????????????????????????? | | ?????????????????????????????????????????????????? | | ?????????????????????????????????????????????????? | +----------------------------------------------------+ Best States ------------- Heat Dissipation 31 Energy Generation 14 Energy Capacity 265 Matter Stores 300 Matter Capacity 300 Sight Range 16 Terrain Scan Density 10 Evasion (%) 55 Targeting Accuracy 6 Recoil Reduction 3 Item Schematics ----------------- None Robot Schematics ------------------ None Fabricated ------------ Nothing Repaired ---------- Nothing Alien Tech Used ----------------- None Achievements -------------- None Challenges ------------ None Game ------ Seed SpectralInertialImmobilizer Manual? 0 Play Time 00:18:45 Cumulative 9.8 hours Start 2025.08.15 @ 19:08:38 End 2025.08.15 @ 20:15:52 Sessions 1 Manual Loads 0 Difficulty Rogue Special Mode None Game No. 30 Rogue 24 Adventurer 6 Explorer 0 Win Type - Total 0 Types 0/0/0/0/0/0/0/0/0/0 Lore% 6 Gallery% 15 Achievement% 16 Wizard Run 0 Options --------- Layout 0 ASCII 0 Keyboard 1 Movement Numpad Keybinds 0 Fullscreen 1 Font 24/Proggy Map View 76x50 Zoom Use 0% Tactical HUD 1 Map Filters NONE Filters NONE Steam 1 RUN: 30722e33-871c-463f-8589-574ed304a176